[Event "Czech Open-GM 2022"]
[Site "Pardubice"]
[Date "2022.07.24"]
[Round "3.8"]
[White "Neuman, Petr"]
[Black "Savitha Shri B"]
[Result "1/2-1/2"]
[ECO "A22"]
[WhiteElo "2378"]
[BlackElo "2278"]
[Annotator "TA"]
[PlyCount "142"]
[EventDate "2022.07.22"]
[EventType "swiss"]
[EventCountry "CZE"]
[SourceTitle "playchess.com"]
[Source "ChessBase"]
[SourceQuality "1"]
[TimeControl "40/5400+30:1800+30"]

{[%evp 11,142,-11,0,-5,24,-3,45,20,13,5,5,8,10,6,20,9,21,20,21,20,92,92,92,74,79,89,98,98,91,99,110,32,54,34,41,8,60,0,0,-8,8,8,7,0,8,0,0,0,0,-6,-6,-7,-7,-86,0,0,0,-79,-78,-82,-71,-79,-75,-72,-12,-103,0,0,0,-33,-30,-27,-35,-54,-50,-47,-52,-45,-59,-47,-52,-52,-40,-52,-53,-54,-52,-54,-23,-25,-28,-31,0,-23,-16,-33,-30,-31,-8,-8,-8,-8,-8,-8,-8,-8,-8,-8,-8,-8,-8,-8,-8,-8,-8,-8,-8,-8,-8,-8,-8,-8,-8,-8,-8,-8,-8,-8,-8,-8,-8,-8,-8]} 1. c4 {[%emt 0:00:04]} Nf6 {[%emt 0:02:02]} 2. Nc3 {[%emt 0:01:10]} e5 {[%emt 0:00:05]} 3. g3 {[%emt 0:00:21]} Nc6 {[%emt 0:01:43]} 4. Bg2 {[%emt 0:00:08]} Bb4 {[%emt 0:06:04]} 5. e4 {[%emt 0:05:28]} d6 {[%emt 0:09:51]} 6. Nge2 {[%emt 0:01:05]} Bg4 $1 {[%emt 0:02:27] 6...Bg4 scores better than 6...0-0.} 7. h3 {[%emt 0:05:47] A25: English Opening vs King's Indian with ...Nc6 but without early d3.} Bh5 {[%emt 0:09:36] [#]} 8. O-O $146 {[%emt 0:03:24]} ({Predecessor:} 8. Qa4 O-O 9. O-O Bc5 10. d3 h6 11. Bd2 Re8 12. Rae1 Qd7 13. Nd5 Nxd5 14. cxd5 Nb8 {1-0 (62) Herrmann,M (2075)-Kranewitter,N (2006) Germany 2017}) 8... Qd7 {[%emt 0:10:52]} (8... Bc5 $11) 9. d3 {[%emt 0:03:07] White is slightly better.} Bxe2 {[%emt 0:02:58]} 10. Nxe2 {[%emt 0:01:09]} Bc5 {[%emt 0:00:28]} 11. a3 {[%emt 0:03:35]} a5 {[%emt 0:01:07] Against b4} 12. b3 {[%emt 0:00:09]} Nd4 {[%emt 0:02:47]} 13. Bb2 {[%emt 0:00:24]} Nxe2+ {[%emt 0:01:03]} 14. Qxe2 {[%emt 0:00:03][%cal Od3d4]} O-O {[%emt 0:00:20]} 15. Kh2 {[%emt 0:00:56]} Bd4 {[%emt 0:02:01]} (15... Qc6 $11 {remains equal.}) 16. Bxd4 $16 {[%emt 0:01:21]} exd4 {[%emt 0:00:03]} 17. f4 {[%emt 0:01:17]} c5 {[%emt 0:05:56]} 18. b4 {[%emt 0:00:22]} axb4 {[%emt 0:20:11]} 19. axb4 {[%emt 0:00:34]} cxb4 {[%emt 0:00:51]} 20. Qb2 {[%emt 0:07:23][%csl LRb4,LRd4]} Qc7 {[%emt 0:01:45]} 21. Qxd4 {[%emt 0:00:31]} (21. Qxb4 $16 Nd7 22. Qb2) 21... Nd7 {[%emt 0:00:21]} 22. Qb2 {[%emt 0:00:30]} Qc5 {[%emt 0:02:45]} 23. Rfb1 {[%emt 0:08:14]} Qe3 {[%emt 0:02:55]} (23... Ra3 $11) 24. d4 {[%emt 0:04:36]} (24. Qxb4 $14 Nc5 25. Re1 Qxd3 26. Rad1) 24... Rxa1 {[%emt 0:01:03]} 25. Qxa1 {[%emt 0:01:30]} Nf6 {[%emt 0:00:41] [#] ...Nh5 is the strong threat.} 26. Re1 {[%emt 0:03:32]} Qd3 {[%emt 0:00:01]} 27. Qb2 {[%emt 0:15:29]} Qxc4 {[%emt 0:06:36]} (27... Nh5 $5 28. Qf2 Qxc4 $11) 28. Rb1 {[%emt 0:00:06]} Qd3 {[%emt 0:01:55]} 29. Qxb4 {[%emt 0:00:49]} Nxe4 {[%emt 0:02:06]} 30. Rb3 $1 {[%emt 0:00:11]} Qe2 {[%emt 0:00:22] White must now prevent ...Nd2.} 31. Rb2 {[%emt 0:12:10] Inhibits Nd2.} Qe3 {[%emt 0:00:08]} 32. Rb3 {[%emt 0:01:06]} (32. Bxe4 $11 Qxe4 33. Qxd6) 32... Qe2 {[%emt 0:00:04]} (32... Qf2 $17 {Threatens to win with ...Nd2.} 33. Rf3 Qe2 34. Qxb7 g6) 33. Rb2 $11 {[%emt 0:00:06] Inhibits Nd2.} Qe3 {[%emt 0:00:17]} (33... Qd3 $11 34. Bxe4 Qxe4) 34. Rb3 $17 {[%emt 0:00:05]} Qf2 {[%emt 0:02:11]} 35. Rf3 {[%emt 0:02:12]} Qe2 {[%emt 0:00:01]} 36. Qxb7 {[%emt 0:00:54]} Nd2 {[%emt 0:00:27]} 37. Ra3 {[%emt 0:00:11]} Qf2 {[%emt 0:02:49]} ({Black should play} 37... g6 $17 {Hoping for ...Re8.} 38. h4 Nf1+ 39. Kh3 Qe6+ 40. g4 (40. f5 $2 Qxf5+ 41. g4 Qf4 $19) 40... Ne3) 38. Ra1 {[%emt 0:01:07] [#]} (38. h4 $11) 38... Qxd4 {[%emt 0:01:08]} (38... g6 $1 $17 {aiming for ...Re8.} 39. h4 Re8) 39. Rd1 $11 {[%emt 0:00:01]} Qc3 {[%emt 0:00:57]} (39... Qf2 $2 40. Qd5 $18) 40. Qc6 {[%emt 0:01:35]} Qxc6 {[%emt 0:00:43]} 41. Bxc6 $15 {[%emt 0:30:05][%mdl 4096] Endgame KRB-KRN} Rc8 {[%emt 0:30:34]} 42. Ba4 {[%emt 0:06:50]} Ne4 {[%emt 0:00:00]} 43. Rd4 {[%emt 0:00:00]} Nc5 {[%emt 0:00:00]} 44. Bd1 {[%emt 0:00:00]} Rc6 {[%emt 0:00:00]} 45. Bf3 {[%emt 0:00:00]} Rb6 {[%emt 0:00:00]} 46. h4 {[%emt 0:00:00]} g6 {[%emt 0:00:00]} 47. h5 {[%emt 0:00:00]} Kg7 {[%emt 0:00:00]} 48. hxg6 {[%emt 0:00:00]} hxg6 {[%emt 0:00:00]} 49. Bd5 {[%emt 0:00:00]} Nd7 {[%emt 0:00:00]} 50. g4 {[%emt 0:00:00]} Nf6 {[%emt 0:00:00]} 51. Bf3 {[%emt 0:00:00]} Nd7 {[%emt 0:00:00]} 52. g5 {[%emt 0:00:00]} Nc5 {[%emt 0:00:00]} 53. Kg3 {[%emt 0:00:00]} Rb3 {[%emt 0:00:00]} 54. Kg4 {[%emt 0:00:00]} Nd3 {[%emt 0:00:52]} (54... Ne6 $5 {[%cal Re6d4]} 55. Rxd6 Rb4 $17) 55. Bg2 {[%emt 0:00:00] The position is equal.} Nf2+ {[%emt 0:00:24]} 56. Kh4 {[%emt 0:00:00]} Rd3 {[%emt 0:01:48]} 57. Rxd3 {[%emt 0:00:00]} Nxd3 $11 {[%emt 0:00:02] KB-KN} 58. Kg4 {[%emt 0:00:00]} Nb4 {[%emt 0:02:06]} 59. Be4 {[%emt 0:00:00]} Kf8 {[%emt 0:02:56]} 60. f5 $1 {[%emt 0:00:00]} gxf5+ {[%emt 0:00:01]} 61. Kxf5 {[%emt 0:00:00]} Ke7 {[%emt 0:00:06]} 62. g6 {[%emt 0:00:00]} fxg6+ {[%emt 0:00:03]} 63. Kxg6 {[%emt 0:00:00]} Ke6 {[%emt 0:00:02]} 64. Kg5 {[%emt 0:00:00]} Ke5 {[%emt 0:00:03]} 65. Bh7 $1 {[%emt 0:00:00]} Nd5 {[%emt 0:00:29]} 66. Bg8 $1 {[%emt 0:00:00]} Nf6 {[%emt 0:00:06]} 67. Ba2 {[%emt 0:00:00]} Ne4+ {[%emt 0:00:21]} 68. Kg4 {[%emt 0:00:00]} Kd4 {[%emt 0:00:01]} 69. Kf4 {[%emt 0:00:00]} Nd2 {[%emt 0:00:05]} 70. Bg8 {[%emt 0:00:00]} d5 {[%emt 0:00:16]} 71. Bxd5 {[%emt 0:00:00]} Kxd5 {[%emt 0:00:02] Weighted Error Value: White=0.13 (very precise) /Black=0.15 (very precise)} 1/2-1/2

[Event "Czech Open-GM 2022"]
[Site "Pardubice"]
[Date "2022.07.24"]
[Round "3.9"]
[White "Jonsson, Gauti Pall"]
[Black "Keller, Peter"]
[Result "0-1"]
[ECO "C45"]
[WhiteElo "2071"]
[BlackElo "2377"]
[Annotator "TA"]
[PlyCount "92"]
[EventDate "2022.07.22"]
[EventType "swiss"]
[EventCountry "CZE"]
[SourceTitle "playchess.com"]
[Source "ChessBase"]
[SourceQuality "1"]
[TimeControl "40/5400+30:1800+30"]

{[%evp 14,92,-1,-21,-19,-20,-19,-38,-29,-32,-30,-37,-23,-53,-25,-46,-22,-27,-25,-20,-27,-78,-64,-68,-77,-75,-74,-74,-78,-110,-26,-84,-87,-105,-107,-104,-104,-113,-113,-112,-89,-100,-76,-77,-76,-76,-78,-95,-61,-64,-64,-91,-100,-108,-62,-89,-105,-82,-81,-133,-133,-181,-175,-288,-292,-293,-287,-384,-366,-407,-403,-497,-494,-555,-555,-592,-592,-808,-812,-823,-787]} 1. e4 {[%emt 0:00:11]} e5 {[%emt 0:01:47]} 2. Nf3 {[%emt 0:00:19]} Nc6 {[%emt 0:00:05]} 3. d4 {[%emt 0:00:23]} exd4 {[%emt 0:00:06]} 4. Nxd4 {[%emt 0:00:12]} Nf6 {[%emt 0:00:18][%cal Bg8f6,Bf6d5,Bd5b6][%mdl 32]} 5. Nxc6 {[%emt 0:00:51]} bxc6 {[%emt 0:00:07]} 6. e5 {[%emt 0:00:27]} Qe7 {[%emt 0:00:06]} 7. Qe2 {[%emt 0:00:18]} Nd5 {[%emt 0:00:09]} 8. h4 {[%emt 0:07:01]} Qe6 {[%emt 0:09:28] C45: Scotch Game.} 9. g3 {[%emt 0:00:30]} d6 {[%emt 0:14:06]} 10. c4 {[%emt 0:03:39]} Nb6 {[%emt 0:00:39] [#] Black is slightly better.} 11. c5 $146 {[%emt 0:05:51]} ({Predecessor:} 11. Bg2 Bb7 12. O-O dxe5 13. b3 O-O-O 14. Bb2 Bd6 15. Nd2 Rhe8 16. Ne4 Be7 17. Rfe1 {½-½ (39) Abdusattorov,N (2627)-So,W (2770) Chess.com INT 2020}) 11... Nd5 {[%emt 0:06:22]} 12. exd6 {[%emt 0:06:48]} cxd6 {[%emt 0:00:26]} 13. Bd2 {[%emt 0:07:48]} Rb8 {[%emt 0:18:23]} 14. b3 {[%emt 0:03:27]} Nb4 {[%emt 0:06:38] [#] Hoping for ...Nc2+.} 15. Qxe6+ {[%emt 0:03:42]} (15. Bxb4 {looks sharper.} Rxb4 16. Qxe6+ Bxe6 17. cxd6 Re4+ 18. Kd2) 15... Bxe6 {[%emt 0:00:14]} 16. Bxb4 {[%emt 0:02:59]} Rxb4 {[%emt 0:00:05]} 17. Nc3 {[%emt 0:02:26]} (17. cxd6 $11 {keeps the balance.} Bd5 18. Rh2) 17... dxc5 {[%emt 0:04:16]} (17... d5 $5 {[%cal Rf8c5]} 18. Na4 g6 $17) 18. O-O-O {[%emt 0:05:47]} Be7 {[%emt 0:03:16]} 19. Bg2 {[#]} Rb6 {[%emt 0:11:32][%cal Bb4b6,Bb6a6,Ba6a5][%mdl 32]} 20. Na4 {[%emt 0:06:43]} Ra6 {[%emt 0:00:10]} 21. Rhe1 {[%emt 0:01:39]} O-O {[%emt 0:03:02]} (21... c4 $17 22. Bf1 Ra5) 22. Bf1 {[%emt 0:05:47]} (22. Bh3 $1 $11 {remains equal.}) 22... c4 $17 {[%emt 0:00:48]} 23. Rxe6 {[%emt 0:03:29]} fxe6 {[%emt 0:00:14]} 24. Bxc4 {[%emt 0:00:07]} Ra5 {[%emt 0:00:21]} 25. Bxe6+ {[%emt 0:00:06]} Kh8 {[%emt 0:00:02] aiming for ...Re5.} 26. f4 {[%emt 0:00:43] Against Re5} Rd8 {[%emt 0:02:16]} 27. Re1 {[%emt 0:03:39]} Rb5 {[%emt 0:01:19]} 28. Kc2 {[%emt 0:02:35]} Rb7 {[%emt 0:02:33]} 29. Nb2 {[%emt 0:00:54]} g6 {[%emt 0:02:52]} 30. Nc4 {[%emt 0:02:49]} Bd6 {[%emt 0:02:09]} 31. Bg4 {[%emt 0:03:31]} Bc5 {[%emt 0:06:22]} 32. Re2 {[%emt 0:01:06] Against Bf2} Kg7 {[%emt 0:03:52]} 33. Bf3 {[%emt 0:01:42]} Rc7 {[%emt 0:01:26]} (33... Re7 $17 {Threatens to win with ...Rxe2+.} 34. Ne5 Rd6) 34. Na5 {[%emt 0:02:07]} Bb4 {[%emt 0:01:04]} 35. Nc4 {[%emt 0:01:00]} Re7 {[%emt 0:00:26] Strongly threatening ...Rxe2+.} 36. Rxe7+ {[%emt 0:02:29]} ({White should play} 36. Ne5) 36... Bxe7 {[%emt 0:00:01]} 37. Bxc6 {[%emt 0:03:56][%mdl 4096] Endgame KRB-KBN} (37. h5 $17) 37... Bc5 $19 {[%emt 0:00:09]} 38. a4 {[%emt 0:03:10]} (38. g4 $142) 38... Bf2 {[%emt 0:00:18]} 39. g4 {[%emt 0:00:37]} Bxh4 {[%emt 0:00:21]} 40. f5 {[%emt 0:02:08]} gxf5 {[%emt 0:01:33]} 41. gxf5 {[%emt 0:30:07]} Be1 {[%emt 0:02:54]} 42. Be4 {[%emt 0:00:00]} h5 {[%emt 0:01:40][%cal Bh7h5,Bh5h4][%mdl 32] Black is clearly winning.} 43. Bf3 {[%emt 0:00:00]} h4 {[%emt 0:00:36]} 44. Bg4 {[%emt 0:00:00]} Kf6 {[%emt 0:00:42]} 45. Bh3 {[%emt 0:00:00]} a5 {[%emt 0:05:05]} 46. Kc1 {[%emt 0:00:00]} Rd3 {[%emt 0:04:01][%csl LRb3,LRh3] Weighted Error Value: White=0.27 (precise) /Black=0.10 (very precise)} 0-1

[Event "Czech Open-GM 2022"]
[Site "Pardubice"]
[Date "2022.07.24"]
[Round "3.10"]
[White "Sorensen, Hampus"]
[Black "Crevatin, Leo"]
[Result "1/2-1/2"]
[ECO "A06"]
[WhiteElo "2376"]
[BlackElo "2259"]
[Annotator "TA"]
[PlyCount "75"]
[EventDate "2022.07.22"]
[EventType "swiss"]
[EventCountry "CZE"]
[SourceTitle "playchess.com"]
[Source "ChessBase"]
[SourceQuality "1"]
[TimeControl "40/5400+30:1800+30"]

{[%evp 11,75,27,27,18,16,19,27,5,46,44,41,34,50,27,89,80,72,69,100,100,105,114,108,104,114,116,118,54,53,52,63,39,75,51,47,38,58,66,89,90,95,56,83,84,134,128,118,70,192,174,180,152,170,4,0,0,0,0,-21,-22,-16,-31,-32,-25,-27,-29]} 1. Nf3 {[%emt 0:00:17]} d5 {[%emt 0:00:27]} 2. g3 {[%emt 0:00:19]} Nf6 {[%emt 0:01:12]} 3. Bg2 {[%emt 0:00:49]} c6 {[%emt 0:00:51]} 4. O-O {[%emt 0:02:38]} Bf5 {[%emt 0:02:37]} 5. c4 {[%emt 0:01:46]} e6 {[%emt 0:00:40]} 6. Qb3 {[%emt 0:00:54]} Qb6 {[%emt 0:02:20]} 7. d3 {[%emt 0:00:25] A11: English Opening: 1...c6.} Nbd7 {[%emt 0:02:59]} 8. cxd5 {[%emt 0:00:38]} exd5 {[%emt 0:02:54]} 9. Qc2 {[%emt 0:00:44][%cal Oe2e4] White has an edge.} Be7 {[%emt 0:04:37]} (9... Qc5 $5 {[%cal Rc5c2]} 10. Qa4 Bd6 $11) 10. Nc3 {[%emt 0:03:21]} O-O {[%emt 0:03:38]} 11. e4 {[%emt 0:03:51]} Bg4 {[%emt 0:06:59]} 12. h3 {[%emt 0:04:35] [#]} (12. Be3 $5 {[%cal Re3b6]} Qa6 13. Rac1 $14) 12... Bh5 $146 {[%emt 0:03:34]} (12... Bxf3 $11 13. Bxf3 Ne5) ({Predecessor:} 12... dxe4 13. dxe4 Be6 14. Be3 Qa5 15. Ng5 Bc5 16. Nxe6 fxe6 17. Bxc5 Qxc5 18. Kh2 Kh8 {½-½ (50) Spata,G (2290)-Sarkar,J (2356) Chess.com INT 2021}) 13. Nh4 $16 {[%emt 0:03:27]} dxe4 {[%emt 0:07:14]} 14. dxe4 {[%emt 0:00:27]} Bg6 {[%emt 0:06:54]} 15. Be3 {[%emt 0:07:20]} Qc7 {[%emt 0:01:24]} 16. f4 {[%emt 0:15:31]} Ne8 {[%emt 0:00:51][%cal Bf6e8,Be8c7,Bc7e6,Be6d4][%mdl 32]} 17. Nxg6 {[%emt 0:05:22]} hxg6 {[%emt 0:00:13]} 18. e5 {[%emt 0:04:08]} Bc5 {[%emt 0:02:11]} 19. Rae1 {[%emt 0:02:29]} (19. Bf2 $16) 19... Bxe3+ $14 {[%emt 0:02:50]} 20. Rxe3 {[%emt 0:00:02]} Qb6 {[%emt 0:00:45]} 21. Rfe1 {[%emt 0:02:47] And now Na4 would win. 0x0.0005eafb0671dp-1022s more active pieces.} Nc7 {[%emt 0:03:04]} 22. Kh1 {[%emt 0:03:19]} (22. Na4 $5 {[%cal Ra4b6]} Qb5 23. Rd3 $16) 22... Nc5 {[%emt 0:06:40]} 23. g4 {[%emt 0:02:47]} N7e6 {[%emt 0:05:11]} 24. f5 {[%emt 0:01:17]} Nd4 {[%emt 0:00:07]} 25. Qb1 {[%emt 0:02:01] Strongly threatening b4.} a5 {[%emt 0:04:40]} 26. fxg6 {[%emt 0:08:37]} fxg6 {[%emt 0:01:46]} 27. e6 {[%emt 0:08:09][%cal Be5e6,Be6e7][%mdl 32]} Rf6 {[%emt 0:03:29]} (27... Ndxe6 $142 28. Rxe6 Nxe6 29. Rxe6 Rf2) 28. e7 $16 {[%emt 0:02:52]} Re8 {[%emt 0:02:09]} 29. Rf1 {[%emt 0:01:42]} ({White should try} 29. Qd1 $16 Nce6 30. Ne4) 29... Rxf1+ {[%emt 0:01:23]} (29... Kf7 $1 $14) 30. Bxf1 $18 {[%emt 0:00:11]} Nce6 {[%emt 0:03:12]} 31. Qxg6 {[%emt 0:04:40]} Rxe7 {[%emt 0:00:10]} 32. b3 {[%emt 0:04:08]} (32. Bc4 $18) 32... Qc7 $1 $11 {[%emt 0:05:43]} 33. Bc4 {[%emt 0:00:27]} Qf4 $1 {[%emt 0:01:54]} 34. Qe4 {[%emt 0:00:24] [#] aiming for Qxf4.} Kf8 {[%emt 0:03:03]} 35. Qxf4+ {[%emt 0:02:35]} ({Don't go for} 35. Bxe6 $2 Qf1+ 36. Kh2 Rxe6 37. Qxe6 Qf2+ 38. Kh1 Qf1+ 39. Kh2 Nxe6 40. Rxe6 Qf2+ 41. Kh1 Qg3 $19) 35... Nxf4 {[%emt 0:00:02] Pair of Knights!} 36. Rxe7 {[%emt 0:00:06]} Kxe7 {[%emt 0:00:03]} 37. Kh2 {[%emt 0:00:34]} b5 {[%emt 0:00:53]} 38. Bf1 $1 {[%emt 0:00:51] Weighted Error Value: White=0.16 (very precise) /Black=0.14 (very precise)} 1/2-1/2

[Event "Czech Open-GM 2022"]
[Site "Pardubice"]
[Date "2022.07.24"]
[Round "3.11"]
[White "Svanda, Ondrej"]
[Black "Mullick, Raahil"]
[Result "1-0"]
[ECO "A06"]
[WhiteElo "2363"]
[BlackElo "2237"]
[Annotator "TA"]
[PlyCount "85"]
[EventDate "2022.07.22"]
[EventType "swiss"]
[EventCountry "CZE"]
[SourceTitle "playchess.com"]
[Source "ChessBase"]
[SourceQuality "1"]
[TimeControl "40/5400+30:1800+30"]

{[%evp 15,85,25,16,24,12,10,29,20,27,25,40,36,47,35,40,34,89,55,75,50,86,92,83,40,50,22,29,21,48,31,35,11,15,8,0,8,2,0,0,6,17,1,14,20,22,26,71,61,89,44,100,45,62,79,285,296,302,300,300,68,315,308,425,415,402,391,29972,941,906,906,859,852]} 1. Nf3 {[%emt 0:00:00]} d5 {[%emt 0:00:00]} 2. g3 {[%emt 0:00:00]} Nf6 {[%emt 0:00:17]} 3. Bg2 {[%emt 0:00:00]} c6 {[%emt 0:00:05]} 4. O-O {[%emt 0:00:00]} Bf5 {[%emt 0:00:03]} 5. d3 {[%emt 0:00:12]} h6 {[%emt 0:00:36]} 6. c4 {[%emt 0:01:04]} e6 {[%emt 0:00:11]} 7. cxd5 {[%emt 0:06:15]} exd5 {[%emt 0:02:20]} 8. Nc3 {[%emt 0:00:22]} Be7 {[%emt 0:00:24]} 9. Qc2 {[%emt 0:01:29] [#] A11: English Opening: 1...c6.} Na6 $146 {[%emt 0:02:29]} ({Predecessor:} 9... O-O 10. e4 dxe4 11. dxe4 Bh7 12. Bf4 Na6 13. Rad1 Qa5 14. Nd4 Rfe8 15. f3 Rad8 16. Kh1 Bf8 {0-1 (37) Atabayev,M (2475)-Iskusnyh,S (2473) Chess.com INT 2020}) 10. a3 {[%emt 0:06:42]} Nc5 {[%emt 0:07:53]} 11. Nd4 {[%emt 0:05:58] White has an edge.} (11. b4 $5 {[%cal Rb4c5]} Ne6 12. e4 $11) 11... Bh7 {[%emt 0:00:52]} 12. b4 {[%emt 0:00:02]} Ne6 {[%emt 0:02:32]} 13. Nxe6 {[%emt 0:01:42]} fxe6 {[%emt 0:00:06]} 14. e4 {[%emt 0:02:31]} O-O {[%emt 0:02:48]} 15. Bb2 {[%emt 0:05:23]} d4 {[%emt 0:08:15]} (15... a5 $14) 16. Na4 {[%emt 0:02:05][%cal Bc3a4,Ba4c5,Bc5e6][%mdl 32]} e5 {[%emt 0:00:17]} 17. Bh3 {[%emt 0:05:35]} Bd6 {[%emt 0:05:30]} 18. Nc5 {[%emt 0:06:47]} Qe7 {[%emt 0:02:02]} 19. Rae1 {[%emt 0:05:42]} Kh8 {[%emt 0:07:15]} 20. Ne6 {[%emt 0:08:36]} Rfe8 {[%emt 0:00:06]} 21. f4 {[%emt 0:00:11]} a5 {[%emt 0:08:56]} 22. fxe5 {[%emt 0:05:39]} (22. bxa5 {feels hotter.} Rxa5 23. fxe5 Bxe5 24. Nxd4 Qd6 25. Nf5) 22... Bxe5 {[%emt 0:00:06]} 23. Bxd4 {[%emt 0:06:09]} ({Reject} 23. Nxd4 axb4 24. Nf5 (24. axb4 $2 Qxb4 25. Nxc6 bxc6 $19) 24... Bxf5 25. exf5 Qd6 26. axb4 Bxb2 27. Qxb2 Rxe1 28. Rxe1 Qxd3 $15) (23. Qc5 {keeps more tension.} Qxc5 24. bxc5 Bg8 25. Nf4) 23... Bxd4+ {[%emt 0:09:36]} 24. Nxd4 {[%emt 0:00:01]} axb4 {[%emt 0:00:12]} 25. axb4 {[%emt 0:00:06]} Qxb4 {[%emt 0:00:22]} 26. Ne6 {[%emt 0:03:20]} Nd7 {[%emt 0:13:23][%cal Bf6d7,Bd7e5,Be5c4][%mdl 32] Inhibits Qc5.} 27. Qf2 {[%emt 0:19:06][%cal Oe6g7] Strongly threatening Nxg7!} Ne5 {[%emt 0:04:05]} 28. Rd1 {[%emt 0:00:17] d4 is the strong threat.} Re7 {[%emt 0:10:18]} 29. d4 {[%emt 0:04:08]} Nc4 {[%emt 0:00:01]} 30. e5 {[%emt 0:02:10]} Be4 {[%emt 0:02:47]} 31. Nf4 {[%emt 0:00:49]} Qb3 {[%emt 0:03:44]} 32. Ra1 {[%emt 0:00:47] Prevents Ra2.} Rxa1 (32... Ree8 $1 $14) 33. Rxa1 $16 {Hoping for Qe2.} Qc3 {[%emt 0:00:39]} 34. Re1 $40 {[%emt 0:01:17][%mdl 128] White attacks with force.} Bh7 {[%emt 0:03:34]} (34... Nd2 $16 {is a better defense.} 35. Bg2 Bxg2 36. Kxg2 (36. Ng6+ Kh7 $11) 36... Kh7) 35. Be6 $1 $18 {[%emt 0:00:10][%cal Of4g6,Bh3e6,Be6f7,Bf7g6][%mdl 32]} Re8 {[%emt 0:00:50] [#]} 36. Bf7 $1 {[%emt 0:00:51]} Ra8 {[%emt 0:02:09]} 37. Ng6+ {[%emt 0:01:22]} Bxg6 {[%emt 0:00:01]} 38. Bxg6 {[%emt 0:00:01] aiming for e6.} Qb4 {[%emt 0:04:11]} 39. e6 {[%emt 0:00:01][%cal Be5e6,Be6e7][%mdl 32] White wants to mate with e7.} Qe7 {[%emt 0:00:01]} 40. Qf7 {[%emt 0:01:36]} Qb4 {[%emt 0:00:52]} (40... Qf6 $18 41. e7 Qxf7 42. Bxf7 Nd6 43. e8=Q+ Nxe8 44. Bxe8 Kh7) 41. Rb1 {[%emt 0:03:26]} (41. Rf1 $142 Nd2 {[#]} 42. e7 $1 Qxe7 43. Qxe7 Nxf1 44. Kxf1 Rc8 45. Qxb7 Rg8 46. Qxc6) 41... Qd2 {[%emt 0:06:22]} 42. e7 {[%emt 0:00:28] Active counter play!} Qxd4+ {[%emt 0:01:02]} 43. Kh1 {[%emt 0:00:03] Weighted Error Value: White=0.09 (flawless) /Black=0.49} 1-0

[Event "Czech Open-GM 2022"]
[Site "Pardubice"]
[Date "2022.07.24"]
[Round "3.12"]
[White "Donchenko, Alexander"]
[Black "Soham Datar"]
[Result "1-0"]
[ECO "B23"]
[WhiteElo "2640"]
[BlackElo "2111"]
[Annotator "TA"]
[PlyCount "55"]
[EventDate "2022.07.22"]
[EventType "swiss"]
[EventCountry "CZE"]
[SourceTitle "playchess.com"]
[Source "ChessBase"]
[SourceQuality "1"]
[TimeControl "40/5400+30:1800+30"]

{[%evp 9,55,0,11,0,0,0,0,-23,39,4,-6,0,21,-153,35,6,104,111,104,109,144,120,136,90,150,99,229,216,298,283,368,360,401,385,389,389,931,923,1129,1034,1371,1300,1639,1758,1754,1680,29974,3065]} 1. e4 {[%emt 0:00:03]} c5 {[%emt 0:00:09]} 2. Nc3 {[%emt 0:00:06]} d6 {[%emt 0:00:22]} 3. d4 {[%emt 0:00:16]} cxd4 {[%emt 0:00:26]} 4. Qxd4 {[%emt 0:00:03]} Nc6 {[%emt 0:00:11]} 5. Qd2 {[%emt 0:00:07]} g6 {[%emt 0:01:31]} 6. b3 {[%emt 0:00:08] B23: Closed Sicilian: Lines without g3.} Bh6 {[%emt 0:00:06]} 7. f4 {[%emt 0:00:06]} Nf6 {[%emt 0:00:44]} 8. Bb2 {[%emt 0:00:11] The position is equal.} e5 {[%emt 0:00:05]} (8... a5 $11) 9. g3 $14 {[%emt 0:00:14]} O-O {[%emt 0:00:08] White should prevent ...exf4.} 10. O-O-O {[%emt 0:00:07]} Re8 {[%emt 0:14:43] [#]} 11. h3 $146 {[%emt 0:06:45] [#]} (11. Bg2 $11) ({Predecessor:} 11. Kb1 Nd4 12. Bg2 Bg4 13. Rf1 d5 14. h3 Be6 15. g4 Nxe4 16. Nxe4 dxe4 17. Bxe4 {0-1 (38) Shirov,A (2704)-Dominguez Perez,L (2752) Berlin 2022}) 11... Be6 $2 {[%emt 0:04:22]} ({Don't play} 11... exf4 $6 12. Bg2 $11) ({Black should play} 11... Nh5 $1 $17 {[%cal Rh5g3]} 12. Nge2 {[#]} Nxg3 $1 {[%mdl 512]}) 12. Nge2 {[%emt 0:03:47]} Qa5 {[%emt 0:01:43]} (12... a5 $11) 13. Bg2 $16 {[%emt 0:01:54]} ({Don't go for} 13. Qxd6 $2 Rad8 14. Qa3 Rxd1+ 15. Nxd1 Qxa3 16. Bxa3 Nxe4 $17) 13... Rad8 {[%emt 0:03:32]} 14. Kb1 {[%emt 0:01:14]} Nh5 {[%emt 0:13:46]} 15. Bf3 {[%emt 0:05:24]} Nf6 {[%emt 0:11:48]} 16. Qe1 {[%emt 0:11:08]} (16. Rhf1 $142) 16... Qa6 {[%emt 0:01:53]} ({Better is} 16... Bg7) 17. h4 {[%emt 0:04:51]} ({White should try} 17. Qf2) 17... b5 {[%emt 0:05:38] This move loses the game for Black.} (17... Bg7 $16) 18. h5 {[%emt 0:03:40] Black must now prevent hxg6.} Bg7 {[%emt 0:00:36]} 19. hxg6 {[%emt 0:01:07]} hxg6 {[%emt 0:04:20]} 20. g4 {[%emt 0:10:43][%cal Bg3g4,Bg4g5][%mdl 32]} ({Not} 20. Nd5 Qc8 $16) 20... b4 {[%emt 0:03:27]} 21. Nd5 {[%emt 0:01:09]} Bxd5 {[%emt 0:00:27]} 22. exd5 {[%emt 0:00:07]} Na5 {[%emt 0:06:36]} (22... Nd4) 23. g5 $18 {[%emt 0:03:18]} Nd7 {[%emt 0:00:22]} 24. f5 {[%emt 0:00:55] Hoping for Qh4.} gxf5 {[%emt 0:02:29]} 25. Ng3 {[%emt 0:00:14]} Nf8 {[%emt 0:01:38]} 26. Nxf5 {[%emt 0:00:25] Qh4 would kill now.} Ng6 {[%emt 0:00:05] Inhibits Qh4.} 27. Qg3 {[%emt 0:00:44] Strongly threatening Qh2.} Rc8 {[%emt 0:00:39]} 28. Qh3 {[%emt 0:00:18] Weighted Error Value: White=0.25 (precise) /Black=0.82} (28. Qh2 $142 Kf8 29. Qh7 Re7 30. Qxg7+ Ke8 31. Bg4 Rxc2 32. Rh8+ Kd7 33. Nxe7+ Kc7 34. Nxg6) 1-0